[Event "ENG-ch Women 2019"]
[Site "Hull"]
[Date "2019.09.01"]
[Round "4.16"]
[White "Pettit, Felicity Ol"]
[Black "Mackenzie, Kira"]
[Result "1-0"]
[ECO "D05"]
[WhiteElo "1233"]
[BlackElo "1142"]
[Annotator "NA"]
[PlyCount "61"]
[EventDate "2019.08.30"]
[EventType "swiss"]
[EventCountry "ENG"]
[SourceTitle "playchess.com"]
[Source "ChessBase"]
[SourceQuality "1"]
[TimeControl "5400+30"]

1. d4 {[%emt 0:00:00]} d5 {[%emt 0:00:00]} 2. Nf3 {[%emt 0:00:00]} e6 {[%emt 0:00:36]} 3. e3 {[%emt 0:00:00]} Nf6 {[%emt 0:00:32]} 4. Bd3 {[%emt 0:00:08]} Bd6 {[%emt 0:00:29]} 5. Nbd2 {[%emt 0:00:19]} b6 {[%emt 0:00:23]} 6. e4 {[%emt 0:01:52]} dxe4 {[%emt 0:00:33]} 7. Nxe4 {[%emt 0:00:16]} Be7 {[%emt 0:02:00]} 8. Nxf6+ {[%emt 0:03:38]} Bxf6 {[%emt 0:00:16]} 9. Be4 {[%emt 0:01:14]} c6 {[%emt 0:00:08]} 10. Bf4 {[%emt 0:03:54]} Bb7 {[%emt 0:01:44]} 11. c3 {[%emt 0:01:43]} Nd7 {[%emt 0:04:11]} 12. O-O {[%emt 0:05:34]} O-O {[%emt 0:02:17]} 13. Rc1 {[%emt 0:05:28]} Re8 {[%emt 0:02:35]} 14. Re1 {[%emt 0:02:15]} e5 {[%emt 0:03:04]} 15. dxe5 {[%emt 0:01:31]} Be7 {[%emt 0:16:09]} 16. Nd4 {[%emt 0:05:01]} Bg5 {[%emt 0:04:54]} 17. Bxg5 {[%emt 0:02:52]} Qxg5 {[%emt 0:00:18]} 18. Bxc6 {[%emt 0:00:48]} Bxc6 {[%emt 0:00:35]} 19. Nxc6 {[%emt 0:00:07]} Nxe5 {[%emt 0:00:30]} 20. Qd5 {[%emt 0:09:45]} Re6 {[%emt 0:04:57]} 21. Ne7+ {[%emt 0:05:05]} Qxe7 {[%emt 0:01:28]} 22. Qxa8+ {[%emt 0:00:11]} Qe8 {[%emt 0:00:09]} 23. Qxe8+ {[%emt 0:00:31]} Rxe8 {[%emt 0:00:03]} 24. f4 {[%emt 0:00:45]} Nf3+ {[%emt 0:00:22]} 25. gxf3 {[%emt 0:00:10]} Rd8 {[%emt 0:01:10]} 26. Rcd1 {[%emt 0:00:53]} Rf8 {[%emt 0:00:17]} 27. Rd7 {[%emt 0:01:02]} g6 {[%emt 0:00:27]} 28. Red1 {[%emt 0:00:54]} Kg7 {[%emt 0:01:28]} 29. Rd8 {[%emt 0:00:08]} Rxd8 {[%emt 0:00:21]} 30. Rxd8 {[%emt 0:00:03]} a6 {[%emt 0:00:17]} 31. Ra8 {[%emt 0:00:20]} 1-0

[Event "ENG-ch Women 2019"]
[Site "Hull"]
[Date "2019.09.01"]
[Round "5.1"]
[White "Head, Louise"]
[Black "Posadas, Rayelynn"]
[Result "1-0"]
[ECO "D53"]
[WhiteElo "2092"]
[BlackElo "1885"]
[Annotator "NA"]
[PlyCount "61"]
[EventDate "2019.08.30"]
[EventType "swiss"]
[EventCountry "ENG"]
[SourceTitle "playchess.com"]
[Source "ChessBase"]
[SourceQuality "1"]
[TimeControl "5400+30"]

1. d4 {[%emt 0:00:00]} d5 {[%emt 0:00:00]} 2. c4 {[%emt 0:00:00]} e6 {[%emt 0:00:21]} 3. Nc3 {[%emt 0:00:00]} Nf6 {[%emt 0:00:03]} 4. Bg5 {[%emt 0:00:00]} Nbd7 {[%emt 0:00:23]} 5. e3 {[%emt 0:00:08]} c6 {[%emt 0:00:42]} 6. Nf3 {[%emt 0:00:41]} Be7 {[%emt 0:01:18]} 7. Qc2 {[%emt 0:01:37]} dxc4 {[%emt 0:04:04]} 8. Bxc4 {[%emt 0:00:13]} b5 {[%emt 0:00:01]} 9. Bd3 {[%emt 0:01:22]} Bb7 {[%emt 0:03:26]} 10. O-O {[%emt 0:07:46]} h6 {[%emt 0:01:08]} 11. Bh4 {[%emt 0:00:58]} O-O {[%emt 0:00:42]} 12. Rfd1 {[%emt 0:00:52]} Nd5 {[%emt 0:06:18]} 13. Nxd5 {[%emt 0:03:23]} exd5 {[%emt 0:04:28]} 14. Bg3 {[%emt 0:02:42]} Rc8 {[%emt 0:00:15]} 15. Rac1 {[%emt 0:02:39]} a6 {[%emt 0:06:35]} 16. Qe2 {[%emt 0:08:13]} f5 {[%emt 0:09:51]} 17. Ne5 {[%emt 0:02:29]} Nxe5 {[%emt 0:00:10]} 18. Bxe5 {[%emt 0:00:14]} Bd6 {[%emt 0:01:04]} 19. f4 {[%emt 0:01:10]} Bxe5 {[%emt 0:05:48]} 20. fxe5 {[%emt 0:00:19]} Qg5 {[%emt 0:03:54]} 21. g3 {[%emt 0:13:39]} h5 {[%emt 0:05:12]} 22. Qf3 {[%emt 0:06:11]} g6 {[%emt 0:06:32]} 23. Rf1 {[%emt 0:06:36]} Kg7 {[%emt 0:02:41]} 24. h3 {[%emt 0:04:15]} Qe7 {[%emt 0:06:39]} 25. Qg2 {[%emt 0:06:53]} Qe6 {[%emt 0:11:04]} 26. Rf4 {[%emt 0:01:34]} Kh6 {[%emt 0:05:39]} 27. g4 {[%emt 0:05:01]} Rc7 {[%emt 0:06:05]} 28. Kh1 {[%emt 0:08:37]} Rcf7 {[%emt 0:05:28]} 29. gxf5 {[%emt 0:02:48]} gxf5 {[%emt 0:00:22]} 30. Rg1 {[%emt 0:00:13]} Kh7 {[%emt 0:03:56]} 31. Bxf5+ {[%emt 0:00:20]} 1-0

[Event "ENG-ch Women 2019"]
[Site "Hull"]
[Date "2019.09.01"]
[Round "5.3"]
[White "Denning, Julie L"]
[Black "Varney, Zoe"]
[Result "0-1"]
[ECO "D35"]
[WhiteElo "1629"]
[BlackElo "1975"]
[Annotator "NA"]
[PlyCount "82"]
[EventDate "2019.08.30"]
[EventType "swiss"]
[EventCountry "ENG"]
[SourceTitle "playchess.com"]
[Source "ChessBase"]
[SourceQuality "1"]
[TimeControl "5400+30"]

1. d4 {[%emt 0:00:00]} d5 {[%emt 0:00:00]} 2. c4 {[%emt 0:00:00]} c6 {[%emt 0:00:00]} 3. Nc3 {[%emt 0:00:01]} Nf6 {[%emt 0:00:00]} 4. Bg5 {[%emt 0:01:00]} e6 {[%emt 0:00:00]} 5. e3 {[%emt 0:00:35]} Nbd7 {[%emt 0:00:00]} 6. cxd5 {[%emt 0:00:51]} exd5 {[%emt 0:02:30]} 7. Bd3 {[%emt 0:00:35]} Be7 {[%emt 0:02:40]} 8. Nf3 {[%emt 0:01:14]} O-O {[%emt 0:00:24]} 9. O-O {[%emt 0:00:10]} h6 {[%emt 0:01:21]} 10. Bh4 {[%emt 0:03:34]} Ne4 {[%emt 0:02:16]} 11. Bxe7 {[%emt 0:03:16]} Qxe7 {[%emt 0:00:14]} 12. Rc1 {[%emt 0:01:50]} f5 {[%emt 0:11:57]} 13. Nd2 {[%emt 0:02:50]} Ndf6 {[%emt 0:02:34]} 14. h3 {[%emt 0:07:38]} Nxd2 {[%emt 0:08:47]} 15. Qxd2 {[%emt 0:01:33]} Ne4 {[%emt 0:00:33]} 16. Nxe4 {[%emt 0:02:40]} fxe4 {[%emt 0:01:17]} 17. Be2 {[%emt 0:03:04]} Qh4 {[%emt 0:11:54]} 18. Kh2 {[%emt 0:07:46]} Rxf2 {[%emt 0:02:05]} 19. Rxf2 {[%emt 0:00:12]} Qxf2 {[%emt 0:00:06]} 20. Rf1 {[%emt 0:00:11]} Qh4 {[%emt 0:00:34]} 21. Qb4 {[%emt 0:00:56]} Qd8 {[%emt 0:00:28]} 22. Bh5 {[%emt 0:01:01]} Qc7+ {[%emt 0:00:51]} 23. Kh1 {[%emt 0:03:14]} Be6 {[%emt 0:01:39]} 24. Qd2 {[%emt 0:02:10]} Rf8 {[%emt 0:06:15]} 25. Rxf8+ {[%emt 0:01:35]} Kxf8 {[%emt 0:00:04]} 26. Qb4+ {[%emt 0:01:42]} Qe7 {[%emt 0:02:07]} 27. Qxe7+ {[%emt 0:04:08]} Kxe7 {[%emt 0:00:04]} 28. b4 {[%emt 0:00:16]} b6 {[%emt 0:02:13]} 29. Kg1 {[%emt 0:02:58]} Kd6 {[%emt 0:00:41]} 30. Kf1 {[%emt 0:00:39]} c5 {[%emt 0:00:16]} 31. bxc5+ {[%emt 0:01:24]} bxc5 {[%emt 0:00:05]} 32. dxc5+ {[%emt 0:00:32]} Kxc5 {[%emt 0:00:05]} 33. Be8 {[%emt 0:01:11]} a5 {[%emt 0:02:12]} 34. a4 {[%emt 0:00:29]} Kd6 {[%emt 0:00:42]} 35. Bb5 {[%emt 0:01:41]} Bd7 {[%emt 0:00:10]} 36. Bxd7 {[%emt 0:00:54]} Kxd7 {[%emt 0:00:04]} 37. Ke2 {[%emt 0:00:10]} Kc6 {[%emt 0:00:45]} 38. Kd2 {[%emt 0:00:09]} Kc5 {[%emt 0:00:23]} 39. Kc3 {[%emt 0:00:12]} h5 {[%emt 0:00:49]} 40. g3 {[%emt 0:00:43]} g5 {[%emt 0:00:22]} 41. Kc2 {[%emt 0:06:16]} Kc4 {[%emt 0:00:06]} 0-1

[Event "ENG-ch Women 2019"]
[Site "Hull"]
[Date "2019.09.01"]
[Round "5.4"]
[White "Ball, Katie C"]
[Black "Bridgeman, Niamh"]
[Result "0-1"]
[ECO "A80"]
[WhiteElo "1472"]
[BlackElo "1511"]
[Annotator "NA"]
[PlyCount "62"]
[EventDate "2019.08.30"]
[EventType "swiss"]
[EventCountry "ENG"]
[SourceTitle "playchess.com"]
[Source "ChessBase"]
[SourceQuality "1"]
[TimeControl "5400+30"]

1. d4 {[%emt 0:00:00]} e6 {[%emt 0:00:00]} 2. Nf3 {[%emt 0:00:00]} f5 {[%emt 0:00:00]} 3. e3 {[%emt 0:00:00]} Nf6 {[%emt 0:00:00]} 4. Nbd2 {[%emt 0:00:05]} Be7 {[%emt 0:00:47]} 5. Bd3 {[%emt 0:00:15]} d5 {[%emt 0:02:00]} 6. b3 {[%emt 0:02:34]} O-O {[%emt 0:01:39]} 7. Bb2 {[%emt 0:00:42]} Bd6 {[%emt 0:08:34]} 8. O-O {[%emt 0:05:29]} Nbd7 {[%emt 0:02:35]} 9. Ne5 {[%emt 0:08:31]} c6 {[%emt 0:05:08]} 10. Ndf3 {[%emt 0:07:22]} Qc7 {[%emt 0:01:42]} 11. h3 {[%emt 0:05:00]} Ne4 {[%emt 0:05:41]} 12. c4 {[%emt 0:14:01]} Qd8 {[%emt 0:24:17]} 13. Qc1 {[%emt 0:29:11]} Rf6 {[%emt 0:15:57]} 14. Ba3 {[%emt 0:03:31]} Bxe5 {[%emt 0:08:38]} 15. dxe5 {[%emt 0:01:44]} Rg6 {[%emt 0:01:03]} 16. Bd6 {[%emt 0:05:04]} Nxd6 {[%emt 0:02:40]} 17. exd6 {[%emt 0:00:02]} Nc5 {[%emt 0:00:28]} 18. Bc2 {[%emt 0:03:12]} Qxd6 {[%emt 0:00:36]} 19. cxd5 {[%emt 0:01:33]} exd5 {[%emt 0:04:49]} 20. Nh4 {[%emt 0:05:18]} Rf6 {[%emt 0:00:14]} 21. Rd1 {[%emt 0:02:15]} Ne4 {[%emt 0:01:49]} 22. Bd3 {[%emt 0:02:03]} Qe7 {[%emt 0:02:10]} 23. f3 {[%emt 0:01:23]} Nc5 {[%emt 0:03:22]} 24. g4 {[%emt 0:01:38]} fxg4 {[%emt 0:01:23]} 25. fxg4 {[%emt 0:00:04]} Nxd3 {[%emt 0:00:10]} 26. Rxd3 {[%emt 0:00:02]} Rh6 {[%emt 0:00:21]} 27. Ng2 {[%emt 0:01:28]} Rxh3 {[%emt 0:00:29]} 28. Nf4 {[%emt 0:00:04]} Rg3+ {[%emt 0:00:18]} 29. Kf2 {[%emt 0:00:45]} Qh4 {[%emt 0:00:43]} 30. Ke2 {[%emt 0:01:00]} Qh2+ {[%emt 0:00:19]} 31. Ke1 {[%emt 0:00:31]} Rg1# {[%emt 0:00:06]} 0-1

[Event "ENG-ch Women 2019"]
[Site "Hull"]
[Date "2019.09.01"]
[Round "5.5"]
[White "Bhatia, Kanwal K"]
[Black "Arora, Tashika"]
[Result "1/2-1/2"]
[ECO "B22"]
[WhiteElo "2044"]
[BlackElo "1447"]
[Annotator "NA"]
[PlyCount "60"]
[EventDate "2019.08.30"]
[EventType "swiss"]
[EventCountry "ENG"]
[SourceTitle "playchess.com"]
[Source "ChessBase"]
[SourceQuality "1"]
[TimeControl "5400+30"]

1. e4 {[%emt 0:00:00]} c5 {[%emt 0:00:00]} 2. c3 {[%emt 0:00:00]} Nf6 {[%emt 0:00:00]} 3. e5 {[%emt 0:00:00]} Nd5 {[%emt 0:00:00]} 4. d4 {[%emt 0:00:00]} cxd4 {[%emt 0:00:00]} 5. Nf3 {[%emt 0:00:00]} Nc6 {[%emt 0:00:00]} 6. cxd4 {[%emt 0:00:00]} d6 {[%emt 0:00:11]} 7. Bc4 {[%emt 0:00:10]} Nb6 {[%emt 0:00:26]} 8. Bb3 {[%emt 0:00:07]} dxe5 {[%emt 0:01:08]} 9. d5 {[%emt 0:00:18]} Na5 {[%emt 0:01:00]} 10. Nc3 {[%emt 0:00:09]} Nxb3 {[%emt 0:00:54]} 11. Qxb3 {[%emt 0:00:06]} e6 {[%emt 0:00:44]} 12. Nxe5 {[%emt 0:00:37]} Bd6 {[%emt 0:01:16]} 13. Qb5+ {[%emt 0:02:05]} Kf8 {[%emt 0:05:23]} 14. dxe6 {[%emt 0:02:18]} Bxe6 {[%emt 0:01:02]} 15. O-O {[%emt 0:06:04]} Qc7 {[%emt 0:01:08]} 16. f4 {[%emt 0:01:43]} Qc5+ {[%emt 0:05:04]} 17. Qxc5 {[%emt 0:01:55]} Bxc5+ {[%emt 0:00:02]} 18. Kh1 {[%emt 0:00:07]} f6 {[%emt 0:01:32]} 19. f5 {[%emt 0:06:24]} Bg8 {[%emt 0:06:56]} 20. Ne4 {[%emt 0:03:39]} Be7 {[%emt 0:03:41]} 21. Nf3 {[%emt 0:01:01]} Bc4 {[%emt 0:00:41]} 22. Re1 {[%emt 0:03:40]} Kf7 {[%emt 0:04:51]} 23. Bf4 {[%emt 0:20:51]} Nd5 {[%emt 0:06:37]} 24. Bd6 {[%emt 0:04:07]} Rhd8 {[%emt 0:01:06]} 25. Rac1 {[%emt 0:18:08]} Bxd6 {[%emt 0:13:02]} 26. Rxc4 {[%emt 0:03:34]} Be7 {[%emt 0:01:07]} 27. Rec1 {[%emt 0:15:58]} Nb6 {[%emt 0:05:17]} 28. Rc7 {[%emt 0:01:11]} Rac8 {[%emt 0:02:18]} 29. g4 {[%emt 0:00:28]} Rxc7 {[%emt 0:01:11]} 30. Rxc7 {[%emt 0:00:07]} Rd7 {[%emt 0:00:31]} 1/2-1/2

[Event "ENG-ch Women 2019"]
[Site "Hull"]
[Date "2019.09.01"]
[Round "5.7"]
[White "Zhu, Yaoyao"]
[Black "Jaufarally, Nadia"]
[Result "1/2-1/2"]
[ECO "B27"]
[WhiteElo "1842"]
[BlackElo "1934"]
[Annotator "NA"]
[PlyCount "48"]
[EventDate "2019.08.30"]
[EventType "swiss"]
[EventCountry "ENG"]
[SourceTitle "playchess.com"]
[Source "ChessBase"]
[SourceQuality "1"]
[TimeControl "5400+30"]

1. e4 {[%emt 0:00:00]} c5 {[%emt 0:00:00]} 2. d4 {[%emt 0:00:06]} cxd4 {[%emt 0:02:27]} 3. c3 {[%emt 0:00:02]} g6 {[%emt 0:00:55]} 4. cxd4 {[%emt 0:01:47]} d5 {[%emt 0:00:16]} 5. exd5 {[%emt 0:02:26]} Nf6 {[%emt 0:01:31]} 6. Nc3 {[%emt 0:00:52]} Bg7 {[%emt 0:03:05]} 7. Bb5+ {[%emt 0:04:27]} Nbd7 {[%emt 0:00:29]} 8. Nf3 {[%emt 0:03:30]} O-O {[%emt 0:03:39]} 9. O-O {[%emt 0:03:54]} Nb6 {[%emt 0:01:40]} 10. Bf4 {[%emt 0:11:02]} Nbxd5 {[%emt 0:03:56]} 11. Be5 {[%emt 0:03:54]} Bd7 {[%emt 0:06:43]} 12. Bc4 {[%emt 0:11:55]} Bc6 {[%emt 0:05:59]} 13. Nxd5 {[%emt 0:10:20]} Bxd5 {[%emt 0:01:31]} 14. Rc1 {[%emt 0:04:26]} Rc8 {[%emt 0:11:53]} 15. Bxd5 {[%emt 0:11:35]} Qxd5 {[%emt 0:04:02]} 16. Qa4 {[%emt 0:01:27]} a6 {[%emt 0:01:47]} 17. Qb4 {[%emt 0:06:03]} e6 {[%emt 0:12:26]} 18. a3 {[%emt 0:06:07]} Rc6 {[%emt 0:06:05]} 19. Rc5 {[%emt 0:01:43]} Rxc5 {[%emt 0:05:15]} 20. Qxc5 {[%emt 0:00:05]} Rd8 {[%emt 0:11:05]} 21. Rc1 {[%emt 0:01:54]} Qxc5 {[%emt 0:03:43]} 22. dxc5 {[%emt 0:02:14]} Ne4 {[%emt 0:02:45]} 23. Bxg7 {[%emt 0:00:06]} Kxg7 {[%emt 0:00:04]} 24. Kf1 {[%emt 0:00:59]} Nd2+ {[%emt 0:05:40]} 1/2-1/2

[Event "ENG-ch Women 2019"]
[Site "Hull"]
[Date "2019.09.01"]
[Round "5.8"]
[White "Sheikh, Anum"]
[Black "Sengenberger, Sara"]
[Result "1/2-1/2"]
[ECO "B34"]
[WhiteElo "1693"]
[BlackElo "1570"]
[Annotator "NA"]
[PlyCount "94"]
[EventDate "2019.08.30"]
[EventType "swiss"]
[EventCountry "ENG"]
[SourceTitle "playchess.com"]
[Source "ChessBase"]
[SourceQuality "1"]
[TimeControl "5400+30"]

1. e4 {[%emt 0:00:00]} c5 {[%emt 0:00:00]} 2. Nf3 {[%emt 0:00:00]} g6 {[%emt 0:00:00]} 3. d4 {[%emt 0:00:00]} cxd4 {[%emt 0:00:08]} 4. Nxd4 {[%emt 0:00:00]} Nc6 {[%emt 0:00:15]} 5. Nc3 {[%emt 0:00:00]} Bg7 {[%emt 0:00:22]} 6. Nb3 {[%emt 0:00:01]} Nf6 {[%emt 0:00:57]} 7. Be2 {[%emt 0:00:15]} O-O {[%emt 0:02:30]} 8. O-O {[%emt 0:00:05]} e6 {[%emt 0:00:50]} 9. Bf3 {[%emt 0:01:39]} Ne5 {[%emt 0:04:20]} 10. Bg5 {[%emt 0:04:39]} h6 {[%emt 0:01:56]} 11. Be3 {[%emt 0:02:39]} Nc4 {[%emt 0:11:06]} 12. Bc1 {[%emt 0:04:45]} Rb8 {[%emt 0:04:36]} 13. a4 {[%emt 0:01:04]} b6 {[%emt 0:04:35]} 14. Re1 {[%emt 0:06:39]} a6 {[%emt 0:02:34]} 15. Be2 {[%emt 0:12:34]} d5 {[%emt 0:03:52]} 16. exd5 {[%emt 0:03:46]} exd5 {[%emt 0:01:42]} 17. Nxd5 {[%emt 0:00:33]} Nxb2 {[%emt 0:04:52]} 18. Bxb2 {[%emt 0:03:16]} Qxd5 {[%emt 0:04:57]} 19. Bf3 {[%emt 0:00:47]} Qxd1 {[%emt 0:01:09]} 20. Raxd1 {[%emt 0:00:08]} Bb7 {[%emt 0:00:58]} 21. Bxb7 {[%emt 0:07:24]} Rxb7 {[%emt 0:00:15]} 22. Rd6 {[%emt 0:00:41]} Re8 {[%emt 0:05:07]} 23. Red1 {[%emt 0:01:04]} Rd7 {[%emt 0:02:18]} 24. f3 {[%emt 0:13:08]} Re1+ {[%emt 0:03:43]} 25. Rxe1 {[%emt 0:00:21]} Rxd6 {[%emt 0:00:15]} 26. c4 {[%emt 0:01:07]} Rc6 {[%emt 0:07:25]} 27. Rc1 {[%emt 0:01:41]} Nd7 {[%emt 0:01:46]} 28. Bxg7 {[%emt 0:02:15]} Kxg7 {[%emt 0:01:19]} 29. a5 {[%emt 0:07:43]} b5 {[%emt 0:04:26]} 30. cxb5 {[%emt 0:00:36]} Rxc1+ {[%emt 0:00:16]} 31. Nxc1 {[%emt 0:00:05]} axb5 {[%emt 0:00:59]} 32. Nd3 {[%emt 0:00:40]} Kf6 {[%emt 0:00:22]} 33. Kf2 {[%emt 0:00:05]} Ke6 {[%emt 0:00:33]} 34. Ke3 {[%emt 0:00:36]} Kd5 {[%emt 0:01:11]} 35. f4 {[%emt 0:05:14]} f6 {[%emt 0:00:28]} 36. Nb2 {[%emt 0:06:59]} Kc5 {[%emt 0:00:40]} 37. f5 {[%emt 0:05:42]} g5 {[%emt 0:00:41]} 38. Ke4 {[%emt 0:00:23]} Nb8 {[%emt 0:03:06]} 39. Nd3+ {[%emt 0:01:50]} Kc4 {[%emt 0:00:47]} 40. Nb2+ {[%emt 0:01:42]} Kb4 {[%emt 0:00:43]} 41. Kd5 {[%emt 0:00:13]} Kxa5 {[%emt 0:00:43]} 42. Ke6 {[%emt 0:00:06]} Nc6 {[%emt 0:02:53]} 43. Kxf6 {[%emt 0:00:05]} Kb4 {[%emt 0:01:17]} 44. g4 {[%emt 0:01:01]} Kc3 {[%emt 0:01:46]} 45. Nd1+ {[%emt 0:00:13]} Kd2 {[%emt 0:02:11]} 46. Nf2 {[%emt 0:02:23]} Ke3 {[%emt 0:00:52]} 47. Nd1+ {[%emt 0:01:13]} Ke4 {[%emt 0:09:39] Ke5+} 1/2-1/2

[Event "ENG-ch Women 2019"]
[Site "Hull"]
[Date "2019.09.01"]
[Round "5.9"]
[White "Kumaar, Sai Chinmayee N"]
[Black "Milewska, Agnieszka"]
[Result "1/2-1/2"]
[ECO "D02"]
[WhiteElo "1622"]
[BlackElo "1660"]
[Annotator "NA"]
[PlyCount "74"]
[EventDate "2019.08.30"]
[EventType "swiss"]
[EventCountry "ENG"]
[SourceTitle "playchess.com"]
[Source "ChessBase"]
[SourceQuality "1"]
[TimeControl "5400+30"]

1. d4 {[%emt 0:00:00]} d5 {[%emt 0:00:44]} 2. Nf3 {[%emt 0:00:00]} Nf6 {[%emt 0:01:42]} 3. Bf4 {[%emt 0:00:00]} Bf5 {[%emt 0:02:08]} 4. e3 {[%emt 0:00:00]} e6 {[%emt 0:00:10]} 5. c3 {[%emt 0:00:00]} c5 {[%emt 0:00:36]} 6. Nbd2 {[%emt 0:00:24]} Nbd7 {[%emt 0:00:40]} 7. Be2 {[%emt 0:00:40]} cxd4 {[%emt 0:00:20]} 8. cxd4 {[%emt 0:00:08]} Bb4 {[%emt 0:00:43]} 9. O-O {[%emt 0:00:48]} O-O {[%emt 0:00:09]} 10. Rc1 {[%emt 0:02:44]} Bxd2 {[%emt 0:01:42]} 11. Nxd2 {[%emt 0:01:10]} Rc8 {[%emt 0:00:25]} 12. Qb3 {[%emt 0:02:22]} Qb6 {[%emt 0:03:37]} 13. Qxb6 {[%emt 0:01:08]} Nxb6 {[%emt 0:00:21]} 14. b3 {[%emt 0:02:14]} h6 {[%emt 0:00:22]} 15. h3 {[%emt 0:00:09]} g5 {[%emt 0:05:34]} 16. Bh2 {[%emt 0:00:59]} a6 {[%emt 0:04:42]} 17. Bd6 {[%emt 0:06:52]} Rfe8 {[%emt 0:00:17]} 18. Rfe1 {[%emt 0:05:16]} Ne4 {[%emt 0:02:48]} 19. Nxe4 {[%emt 0:00:21]} Bxe4 {[%emt 0:00:02]} 20. Red1 {[%emt 0:09:12]} Rxc1 {[%emt 0:01:29]} 21. Rxc1 {[%emt 0:00:05]} Rc8 {[%emt 0:00:11]} 22. Rxc8+ {[%emt 0:00:34]} Nxc8 {[%emt 0:00:01]} 23. Be5 {[%emt 0:00:36]} Ne7 {[%emt 0:00:25]} 24. a3 {[%emt 0:03:06]} Bc2 {[%emt 0:00:36]} 25. b4 {[%emt 0:00:12]} b5 {[%emt 0:00:29]} 26. Kf1 {[%emt 0:01:39]} Bb3 {[%emt 0:00:03]} 27. Ke1 {[%emt 0:01:40]} Bc4 {[%emt 0:00:02]} 28. Kd2 {[%emt 0:03:24]} Nc6 {[%emt 0:01:38]} 29. Bc7 {[%emt 0:01:29]} Bxe2 {[%emt 0:01:16]} 30. Kxe2 {[%emt 0:00:06]} Kg7 {[%emt 0:00:42]} 31. Kd3 {[%emt 0:02:13]} f5 {[%emt 0:00:56]} 32. f3 {[%emt 0:01:16]} h5 {[%emt 0:01:51]} 33. g3 {[%emt 0:06:14]} g4 {[%emt 0:04:54]} 34. hxg4 {[%emt 0:01:11]} fxg4 {[%emt 0:00:56]} 35. fxg4 {[%emt 0:04:05]} hxg4 {[%emt 0:00:06]} 36. e4 {[%emt 0:01:34]} Kg6 {[%emt 0:01:26]} 37. Bb6 {[%emt 0:04:32]} Kf6 {[%emt 0:01:14]} 1/2-1/2

[Event "ENG-ch Women 2019"]
[Site "Hull"]
[Date "2019.09.01"]
[Round "5.10"]
[White "Maladkar, Lavanya"]
[Black "Jaufarally, Zahra"]
[Result "1-0"]
[ECO "E90"]
[WhiteElo "1647"]
[BlackElo "1371"]
[Annotator "NA"]
[PlyCount "67"]
[EventDate "2019.08.30"]
[EventType "swiss"]
[EventCountry "ENG"]
[SourceTitle "playchess.com"]
[Source "ChessBase"]
[SourceQuality "1"]
[TimeControl "5400+30"]

1. d4 {[%emt 0:00:00]} Nf6 {[%emt 0:00:00]} 2. c4 {[%emt 0:00:00]} g6 {[%emt 0:00:00]} 3. Nc3 {[%emt 0:00:00]} Bg7 {[%emt 0:00:00]} 4. e4 {[%emt 0:00:00]} d6 {[%emt 0:00:00]} 5. Nf3 {[%emt 0:00:11]} O-O {[%emt 0:00:41]} 6. h3 {[%emt 0:01:11]} Nbd7 {[%emt 0:00:37]} 7. Be3 {[%emt 0:01:52]} b6 {[%emt 0:00:57]} 8. Bd3 {[%emt 0:01:28]} Bb7 {[%emt 0:00:32]} 9. O-O {[%emt 0:00:57]} Re8 {[%emt 0:03:49]} 10. Re1 {[%emt 0:06:43]} e5 {[%emt 0:00:23]} 11. d5 {[%emt 0:03:09]} c6 {[%emt 0:02:47]} 12. Rc1 {[%emt 0:03:58]} Rc8 {[%emt 0:03:35]} 13. Qd2 {[%emt 0:02:54]} cxd5 {[%emt 0:08:05]} 14. cxd5 {[%emt 0:03:29]} Nc5 {[%emt 0:00:26]} 15. b4 {[%emt 0:02:13]} Nxd3 {[%emt 0:00:28]} 16. Qxd3 {[%emt 0:00:14]} a5 {[%emt 0:00:38]} 17. b5 {[%emt 0:06:57]} Nd7 {[%emt 0:05:07]} 18. Nd2 {[%emt 0:03:55]} Rf8 {[%emt 0:05:02]} 19. Nc4 {[%emt 0:08:07]} Nc5 {[%emt 0:00:29]} 20. Bxc5 {[%emt 0:01:43]} Rxc5 {[%emt 0:02:17]} 21. Na4 {[%emt 0:13:09]} Rxb5 {[%emt 0:01:00]} 22. Nxd6 {[%emt 0:00:46]} Rxd5 {[%emt 0:06:21]} 23. exd5 {[%emt 0:03:22]} Qxd6 {[%emt 0:00:07]} 24. Red1 {[%emt 0:02:19]} Rd8 {[%emt 0:05:41]} 25. Qb5 {[%emt 0:05:07]} Rb8 {[%emt 0:13:25]} 26. Qxb6 {[%emt 0:04:24]} Qxb6 {[%emt 0:00:49]} 27. Nxb6 {[%emt 0:00:12]} Bh6 {[%emt 0:02:50]} 28. Rc7 {[%emt 0:05:07]} Ba6 {[%emt 0:01:08]} 29. Nd7 {[%emt 0:01:39]} Rb2 {[%emt 0:01:32]} 30. d6 {[%emt 0:03:24]} Re2 {[%emt 0:04:09]} 31. Nf6+ {[%emt 0:02:06]} Kf8 {[%emt 0:04:59]} 32. d7 {[%emt 0:01:36]} Re1+ {[%emt 0:00:04]} 33. Rxe1 {[%emt 0:00:34]} Ke7 {[%emt 0:00:08]} 34. Rxe5+ {[%emt 0:00:57]} 1-0